bitfinex/quotes_SOLUSD_20241019
["timestamp","ask_amount","ask_price","bid_price","bid_amount"]
[1729326144192,6.4643,154.7,154.65,6.4658]
[1729326144395,6.4645,154.69,154.65,6.4658]
[1729326144881,6.4645,154.69,154.64,22.6331]
[1729326145201,6.4645,154.69,154.64,16.1665]
[1729326145404,6.4645,154.69,154.65,6.4662]
[1729326147301,6.4645,154.69,154.64,22.6327]
[1729326158217,20.0,154.69,154.61,16.1696]
[1729326159518,6.4657,154.67,154.62,6.4674]
[1729326162615,6.4657,154.67,154.56,22.2234]
[1729326162616,43.776884,154.64,154.56,22.2234]
[1729326162809,43.776884,154.64,154.59,6.4686]
[1729326162810,26.4668,154.64,154.59,6.4686]
[1729326163113,20.0,154.64,154.59,6.4686]
[1729326163297,20.0,154.64,154.6,6.468]
[1729326165614,15.9597,154.67,154.56,22.2234]
[1729326165822,22.4254,154.67,154.61,6.4674]
[1729326167219,20.0,154.66,154.61,6.4674]
[1729326169006,20.0,154.66,154.62,6.4672]
[1729326169207,6.3402,154.7,154.58,32.3457]
[1729326169400,15.9597,154.71,154.64,16.1658]
[1729326169840,6.4644,154.7,154.65,6.4658]
[1729326170123,12.62833341,154.7,154.65,6.4658]
[1729326170717,20.0,154.69,154.65,6.4658]
[1729326174529,15.9597,154.71,154.61,6.4401]
[1729326174709,20.0,154.72,154.62,20.0]
[1729326175028,26.4633,154.72,154.67,6.4652]
[1729326178012,26.4633,154.72,154.66,16.1643]
[1729326178013,6.4633,154.72,154.68,6.4649]
[1729326179812,20.0,154.73,154.7,6.4639]
[1729326180027,26.4629,154.73,154.68,6.4645]
[1729326188830,26.4629,154.73,154.65,15.2678]
[1729326189038,26.4629,154.73,154.69,6.4645]
[1729326203337,20.0,154.75,154.71,6.4633]
[1729326203532,6.4619,154.76,154.71,6.4633]
[1729326213237,6.4612,154.77,154.72,6.463]
[1729326213440,20.0,154.76,154.72,6.463]
[1729326229384,6.4612,154.77,154.67,32.3268]
[1729326229385,20.0,154.77,154.7,6.464]
[1729326229685,6.4623,154.75,154.7,6.464]
[1729326230378,6.4624,154.74,154.68,22.6268]
[1729326232269,6.4624,154.74,154.69,6.4644]
[1729326240092,20.0,154.77,154.65,22.4721]
[1729326240265,6.4616,154.76,154.66,43.776884]
[1729326240468,26.4612,154.77,154.72,6.4631]
[1729326240670,26.4612,154.77,154.73,6.4627]
[1729326243279,6.24596878,154.78,154.7,22.5027]
[1729326243486,6.24596878,154.78,154.74,6.4623]
[1729326243684,20.0,154.77,154.74,6.4623]
[1729326244695,20.0,154.77,154.7,22.5027]
[1729326244878,6.24596878,154.78,154.75,6.4619]
[1729326250199,12.70686878,154.78,154.74,6.4622]
[1729326287027,6.24596878,154.78,154.74,6.4622]
[1729326292735,6.24596878,154.78,154.75,6.4618]
[1729326299654,6.24596878,154.78,154.73,20.0]
[1729326301437,6.24596878,154.78,154.76,6.4612]
[1729326334789,6.4596,154.81,154.76,6.4612]
[1729326341696,26.4591,154.82,154.78,6.4607]
[1729326341866,22.4439282,154.83,154.78,6.4607]
[1729326345164,0.3164282,154.83,154.79,6.46]
[1729326345393,0.3164282,154.83,154.82,6.4591]
[1729326346276,0.3164282,154.83,154.81,16.1484]
[1729326346594,0.3164282,154.83,154.81,22.6078]
[1729326348466,0.3164282,154.83,154.82,6.4591]
[1729326355007,0.3164282,154.83,154.81,22.6078]
[1729326358003,0.3164282,154.83,154.81,16.1484]
[1729326358204,0.3164282,154.83,154.79,6.4603]
[1729326360899,6.7751282,154.83,154.79,6.4603]
[1729326368011,0.3164282,154.83,154.79,6.4603]
[1729326404629,0.3164282,154.83,154.75,65.518084]
[1729326404805,0.3164282,154.83,154.8,6.4597]
[1729326410425,0.3164282,154.83,154.76,32.308]
[1729326410636,0.3164282,154.83,154.81,6.4593]
[1729326417732,0.3164282,154.83,154.76,24.9167]
[1729326417940,0.3164282,154.83,154.77,43.776884]
[1729326419537,0.3164282,154.83,154.81,6.4593]
[1729326441153,0.3164282,154.83,154.79,6.4599]
[1729326442334,6.7753282,154.83,154.79,6.4599]
[1729326446850,0.3164282,154.83,154.8,6.4596]
[1729326447153,0.3164282,154.83,154.76,16.154]
[1729326447154,0.3164282,154.83,154.77,43.776884]
[1729326448328,0.3164282,154.83,154.81,6.4591]
[1729326457163,0.3164282,154.83,154.82,6.4591]
[1729326468771,0.3164282,154.83,154.82,26.4591]
[1729326489086,0.3164282,154.83,154.82,50.235984]
[1729326518624,2.82e-05,154.83,154.82,50.235984]
[1729326530030,80.0000282,154.83,154.82,50.235984]
[1729326543722,80.0000282,154.83,154.82,6.4591]
[1729326545235,80.0000282,154.83,154.82,26.4591]
[1729326545431,80.0000282,154.83,154.82,50.235984]
[1729326547233,20.0,154.92,154.85,6.4575]
[1729326547534,26.64425168,154.92,154.85,6.4575]
[1729326549532,6.4557,154.9,154.85,6.4575]
[1729326550136,16.6072,154.89,154.85,6.4575]
[1729326560353,16.6072,154.89,154.88,6.4566]
[1729326560520,22.442,154.93,154.84,43.776884]
[1729326561041,22.442,154.93,154.88,6.4562]
[1729326561234,22.442,154.93,154.84,43.776884]
[1729326561434,22.442,154.93,154.89,6.4559]
[1729326561627,22.442,154.93,154.84,43.776884]
[1729326561931,15.8127,154.93,154.92,6.4549]
[1729326562145,0.107864,154.94,154.92,6.4549]
[1729326581233,0.107864,154.94,154.91,22.5931]
[1729326582757,0.107864,154.94,154.92,6.4548]
[1729326603358,6.562164,154.94,154.89,6.4558]
[1729326603584,6.4545,154.93,154.89,6.4558]
[1729326604876,6.4545,154.93,154.88,22.5976]
[1729326605256,0.107864,154.94,154.88,16.1411]
[1729326605668,6.4553,154.91,154.87,6.4569]
[1729326608280,0.107864,154.94,154.87,6.4569]
[1729326608465,6.4549,154.93,154.87,6.4569]
[1729326609368,0.107864,154.94,154.85,16.1442]
[1729326609692,0.107864,154.94,154.84,15.094]
[1729326609693,20.107864,154.94,154.84,15.094]
[1729326609984,6.4561,154.9,154.85,6.4575]
[1729326610683,6.4561,154.9,154.84,16.1454]
[1729326610874,6.4561,154.9,154.86,6.4574]
[1729326620226,20.0,154.92,154.84,16.1454]
[1729326620400,6.4564,154.89,154.84,22.6036]
[1729326620568,20.0,154.92,154.82,6.6443]
[1729326620881,6.4566,154.88,154.84,6.4581]
[1729326621778,6.4562,154.89,154.84,6.4581]
[1729326622177,36.138,154.92,154.83,16.1465]
[1729326622367,36.138,154.92,154.8,48.6807]
[1729326622368,20.0,154.9,154.82,6.459]
[1729326622569,6.4574,154.86,154.82,6.459]
[1729326622872,6.4574,154.86,154.8,16.1495]
[1729326623084,6.4574,154.86,154.81,6.4593]
[1729326625796,6.4574,154.86,154.82,6.459]
[1729326630303,6.4571,154.87,154.82,6.459]
[1729326630997,6.4575,154.86,154.81,22.608]
[1729326631396,6.4575,154.86,154.81,16.1487]
[1729326631707,6.4575,154.86,154.82,6.459]
[1729326634410,20.0,154.9,154.79,23.776884]
[1729326634581,6.457,154.87,154.82,16.1472]
[1729326634782,6.457,154.87,154.82,22.606]
[1729326645913,6.4562,154.89,154.84,6.4578]
[1729326646409,26.4557,154.9,154.85,6.4575]
[1729326647305,21.9081,154.91,154.83,6.5851]
[1729326647508,21.9081,154.91,154.86,6.4571]
[1729326647509,6.4554,154.91,154.86,6.4571]
[1729326648420,6.4554,154.91,154.86,22.6005]
[1729326648801,13.09936267,154.92,154.87,6.4566]
[1729326650828,6.64436267,154.92,154.86,16.1434]
[1729326651123,6.4557,154.91,154.86,16.1434]
[1729326651630,6.4557,154.9,154.86,16.1434]
[1729326651919,6.4565,154.89,154.84,6.4581]
[1729326652226,35.5667,154.91,154.84,6.4581]
[1729326652742,6.4571,154.87,154.83,16.1463]
[1729326658129,35.5667,154.91,154.81,6.4594]
[1729326658130,6.4577,154.86,154.81,6.4594]
[1729326658624,20.0,154.89,154.81,6.4594]
[1729326658802,6.4577,154.86,154.81,6.4594]
[1729326664931,6.4588,154.83,154.79,29.1952]
[1729326665276,6.72263449,154.9,154.79,6.5851]
[1729326665538,20.0,154.87,154.83,6.4583]
[1729326665714,26.457,154.87,154.83,6.4583]
[1729326666836,26.4561,154.9,154.84,6.458]
[1729326667133,20.0,154.87,154.82,6.4588]
[1729326668131,6.4571,154.87,154.82,6.4588]
[1729326669833,6.4571,154.87,154.83,6.4586]
[1729326670539,6.4561,154.89,154.84,16.1455]
[1729326670735,6.4561,154.89,154.85,6.4577]
[1729326671037,22.0223,154.91,154.86,6.4574]
[1729326671230,6.4556,154.91,154.86,6.4574]
[1729326671740,20.0,154.9,154.86,6.4574]
[1729326672332,26.4558,154.9,154.86,6.4574]
[1729326672528,6.4558,154.9,154.85,6.4577]
[1729326676949,6.4567,154.88,154.84,16.1455]
[1729326678244,20.0,154.91,154.83,6.4583]
[1729326678422,6.4566,154.88,154.83,6.4583]
[1729326686151,6.4566,154.88,154.81,15.9444]
[1729326686345,6.4566,154.88,154.84,6.4582]
[1729326687046,6.4572,154.87,154.83,16.1466]
[1729326692151,15.2528,154.9,154.82,6.4587]
[1729326692470,6.4575,154.86,154.81,6.4594]
[1729326693034,6.458,154.85,154.81,6.4594]
[1729326693349,6.4595,154.82,154.77,38.1529]
[1729326695357,6.4595,154.82,154.77,31.6918]
[1729326695657,6.4595,154.82,154.77,38.1529]
[1729326695959,26.4582,154.84,154.79,6.4601]
[1729326698855,6.72264769,154.88,154.78,26.4391]
[1729326699056,56.090884,154.89,154.78,26.4391]
[1729326699057,6.4575,154.86,154.78,26.4391]
[1729326699259,6.4575,154.86,154.81,16.1487]
[1729326699559,6.4578,154.86,154.81,22.6079]
[1729326701944,6.4581,154.85,154.81,16.1487]
[1729326707260,16.1733,154.89,154.78,6.4391]
[1729326707464,20.0,154.87,154.78,6.4604]
[1729326708368,6.459,154.83,154.78,6.4604]
[1729326710565,4.53153851,154.83,154.78,6.4604]
[1729326710756,20.0,154.87,154.78,6.4604]
[1729326711869,20.0,154.85,154.78,6.4604]
[1729326712662,6.4597,154.81,154.76,6.4615]
[1729326713648,6.4597,154.81,154.77,6.461]
[1729326715182,6.4591,154.82,154.77,6.461]
[1729326721669,26.71875702,154.85,154.74,6.457]
[1729326721875,33.17665702,154.85,154.76,26.2781]
[1729326722048,6.4576,154.86,154.76,26.2781]
[1729326722368,6.457,154.87,154.82,6.459]
[1729326722547,6.4566,154.88,154.83,6.4584]
[1729326726477,6.4562,154.89,154.83,22.6047]
[1729326726781,6.4562,154.89,154.84,6.4581]
[1729326734783,43.776884,154.91,154.84,6.4581]
[1729326735089,6.4566,154.88,154.84,6.4581]
[1729326738463,6.4562,154.89,154.84,6.4581]
[1729326750893,6.4557,154.91,154.86,6.4572]
[1729326751492,6.4559,154.9,154.85,6.4577]
[1729326757370,6.4559,154.9,154.86,6.4574]
[1729326762189,13.36446705,154.93,154.86,6.4574]
[1729326762385,6.4554,154.91,154.86,6.4574]
[1729326768595,6.4557,154.9,154.86,6.4574]
[1729326774490,26.4549,154.92,154.87,6.4567]
[1729326785401,6.4549,154.92,154.87,6.4567]
[1729326787314,6.64508837,154.93,154.85,6.0287]
[1729326787505,6.64508837,154.93,154.89,6.4559]
[1729326788409,6.64508837,154.93,154.9,6.4557]
[1729326788620,0.107864,154.94,154.93,6.4545]
[1729326790691,0.107864,154.94,154.92,22.5917]
[1729326792388,0.107864,154.94,154.93,6.4545]
[1729326811336,0.107864,154.94,154.92,16.1369]
[1729326812036,0.107864,154.94,154.91,6.455]
[1729326818742,6.561964,154.94,154.89,16.1401]
[1729326820428,6.561964,154.94,154.89,22.5962]
[1729326828346,6.4553,154.92,154.87,22.2577]
[1729326828647,6.4545,154.93,154.88,6.4564]
[1729326828945,6.4556,154.91,154.83,41.7285]
[1729326829242,26.4549,154.93,154.87,6.457]
[1729326830018,20.0,154.93,154.85,16.1443]
[1729326830223,6.4557,154.91,154.85,16.1443]
[1729326830561,6.4564,154.89,154.84,6.4581]
[1729326831147,26.4558,154.9,154.85,6.4578]
[1729326850657,6.4562,154.89,154.85,6.4578]
[1729326852650,22.9132,154.91,154.85,6.4578]
[1729326852852,20.0,154.9,154.85,6.4578]
[1729326854472,26.4559,154.9,154.85,6.4578]
[1729326860574,6.4572,154.87,154.83,16.1464]
[1729326860752,6.4572,154.87,154.79,21.7285]
[1729326860753,23.776884,154.89,154.79,21.7285]
[1729326861071,6.4574,154.86,154.81,6.4591]
[1729326861250,6.4574,154.86,154.82,6.4589]
[1729326861750,20.0,154.88,154.82,6.4589]
[1729326862062,6.4571,154.87,154.82,6.4589]
[1729326869679,20.0,154.88,154.81,16.1485]
[1729326869981,20.0,154.85,154.81,16.1485]
[1729326870173,6.458,154.85,154.81,16.1485]
[1729326875478,20.0,154.88,154.77,32.306]
[1729326875479,6.4595,154.81,154.78,16.1514]
[1729326875662,20.0,154.82,154.78,6.4606]
[1729326879873,6.459,154.83,154.78,6.4606]
[1729326881468,26.4578,154.85,154.79,16.1506]
[1729326881669,26.4578,154.85,154.79,22.6105]
[1729326886692,20.0,154.85,154.79,22.6105]
[1729326886887,6.4583,154.84,154.79,22.6105]
[1729326891787,6.4587,154.83,154.79,16.1506]
[1729326894803,6.4594,154.82,154.77,6.4611]
[1729326900105,20.0,154.84,154.76,21.1305]
[1729326900291,6.4587,154.83,154.78,22.6122]
[1729326911640,6.4587,154.83,154.78,16.1518]
[1729326911843,6.4587,154.83,154.79,6.4602]
[1729326914137,43.776884,154.84,154.76,21.1305]
[1729326914340,26.4583,154.84,154.8,6.4598]
[1729326917851,6.64760015,154.85,154.77,20.0]
[1729326918042,6.64760015,154.85,154.83,6.4583]
[1729326918226,6.4564,154.89,154.84,6.4582]
[1729326919419,20.0,154.88,154.84,6.4582]
[1729326928436,6.4578,154.85,154.81,6.4595]
[1729326928633,20.0,154.85,154.81,6.4595]
[1729326934343,6.4575,154.86,154.77,38.8623]
[1729326934527,6.4575,154.86,154.82,6.459]
[1729326934723,6.4575,154.86,154.77,38.8623]
[1729326934724,20.0,154.88,154.77,38.8623]
[1729326935034,20.0,154.88,154.78,66.041084]
[1729326935035,26.4566,154.88,154.78,66.041084]
[1729326935260,26.4566,154.88,154.83,6.4583]
[1729326948838,6.4571,154.87,154.83,6.4583]
[1729326949025,6.4571,154.87,154.82,16.147]
[1729326949530,6.4578,154.86,154.82,16.147]
[1729326961248,20.0,154.88,154.82,16.147]
[1729326961449,20.0,154.86,154.83,6.4586]
[1729326962546,20.0,154.88,154.83,6.4586]
[1729326963032,20.0,154.88,154.79,32.3018]
[1729326963230,20.0,154.88,154.84,6.4581]
[1729326964856,26.4566,154.88,154.84,6.4581]
[1729326965924,6.457,154.87,154.83,16.1465]
[1729326966129,6.457,154.87,154.83,22.6051]
[1729326971953,6.457,154.87,154.83,16.1465]
[1729326972135,20.0,154.88,154.79,32.3018]
[1729326972340,6.4577,154.86,154.8,22.6095]
[1729326972750,6.4577,154.86,154.81,6.4595]
[1729326973451,20.0,154.85,154.81,6.4595]
[1729326974045,26.4581,154.85,154.8,22.6094]
[1729326974255,20.0,154.85,154.8,16.1496]
[1729326974461,6.4584,154.84,154.8,16.1496]
[1729326975840,20.0,154.83,154.77,38.8623]
[1729326976046,26.459,154.83,154.78,6.4606]
[1729326980429,20.0,154.86,154.77,29.1718]
[1729326980634,23.776884,154.83,154.77,16.1526]
[1729326980845,20.0,154.82,154.77,16.1526]
[1729326981450,6.4597,154.81,154.77,16.1526]
[1729326982847,26.4592,154.82,154.77,16.1526]
[1729326983046,20.0,154.86,154.78,16.1516]
[1729326983247,20.0,154.83,154.79,6.4602]
[1729326996366,20.0,154.83,154.8,6.4598]
[1729326996573,20.0,154.84,154.8,6.4598]
[1729326996871,20.0,154.84,154.8,5.4598]
[1729326997252,21.8860061,154.87,154.8,5.4598]
[1729326997253,26.4575,154.86,154.81,6.4594]
[1729326997959,26.4575,154.86,154.8,16.1498]
[1729326997960,20.0,154.86,154.82,6.4589]
[1729326998753,6.4574,154.86,154.82,6.4589]
[1729327011788,6.4574,154.87,154.82,6.4589]
[1729327012088,20.0,154.86,154.82,6.4589]
[1729327024073,20.0,154.86,154.79,15.4675]
[1729327024273,20.0,154.86,154.82,22.6065]
[1729327029198,6.4579,154.85,154.8,22.6094]
[1729327031803,6.4579,154.85,154.81,6.4594]
[1729327037278,23.776884,154.87,154.81,6.4594]
[1729327037485,6.4575,154.86,154.81,6.4594]
[1729327056915,6.4575,154.86,154.8,16.1498]
[1729327057095,6.4575,154.86,154.82,6.4591]
[1729327057414,20.0,154.88,154.85,6.4574]
[1729327057797,20.0,154.88,154.84,22.6033]
[1729327069034,13.08261581,154.89,154.84,22.6033]
[1729327069200,20.0,154.88,154.84,22.6033]
[1729327072712,26.4569,154.88,154.84,16.1451]
[1729327077928,20.0,154.88,154.81,22.6074]
[1729327078106,6.4575,154.86,154.81,22.6074]
[1729327079000,20.0,154.88,154.82,6.4589]
[1729327079202,26.457,154.88,154.82,6.4589]
[1729327081204,26.457,154.88,154.8,38.6423]
[1729327081407,26.457,154.88,154.83,6.4584]
[1729327082128,20.0,154.9,154.86,6.4572]
[1729327082339,6.64465343,154.93,154.83,15.4343]
[1729327082634,6.4558,154.9,154.86,6.457]
[1729327086225,6.71010579,154.93,154.86,6.457]
[1729327086428,20.0,154.92,154.88,6.4562]
[1729327102531,13.16470579,154.93,154.89,6.456]
[1729327102738,6.4546,154.93,154.89,6.456]
[1729327103439,50.338948,154.94,154.89,6.456]
[1729327103737,50.338948,154.94,154.88,16.1411]
[1729327103738,20.107864,154.94,154.91,6.455]
[1729327103936,0.107864,154.94,154.92,6.4548]
[1729327104323,0.107864,154.94,154.91,16.1383]
[1729327104631,0.107864,154.94,154.91,22.5936]
[1729327105020,0.107864,154.94,154.93,6.4545]
[1729327105226,0.107864,154.94,154.92,16.1369]
[1729327111538,0.107864,154.94,154.92,22.5916]
[1729327113324,0.107864,154.94,154.93,6.4545]
[1729327118746,0.107864,154.94,154.88,6.6368]
[1729327118947,0.107864,154.94,154.89,16.1402]
[1729327119139,6.562264,154.94,154.89,16.1402]
[1729327119444,6.562264,154.94,154.89,22.5962]
[1729327123943,0.107864,154.94,154.87,16.5594]
[1729327124145,0.107864,154.94,154.91,6.455]
[1729327127839,6.562064,154.94,154.9,16.1386]
[1729327128660,20.0,154.93,154.9,16.1386]
[1729327129652,26.4546,154.93,154.88,6.4565]
[1729327132571,30.231784,154.92,154.87,22.5992]
[1729327134868,30.231784,154.92,154.88,6.4565]
[1729327137455,23.776884,154.92,154.87,22.5989]
[1729327137749,30.232684,154.9,154.85,22.6024]
[1729327140163,30.232684,154.9,154.86,6.4573]
[1729327140544,23.776884,154.9,154.86,6.4573]
[1729327145676,23.776884,154.88,154.85,16.1446]
[1729327145873,6.4571,154.87,154.82,16.1474]
[1729327146251,6.4571,154.87,154.82,22.6061]
[1729327146450,6.4571,154.87,154.82,16.1474]
[1729327147151,20.0,154.87,154.83,6.4586]
[1729327150975,30.233584,154.88,154.83,6.4586]
[1729327151363,20.0,154.87,154.83,6.4586]
[1729327154181,20.0,154.87,154.8,21.1357]
[1729327154380,20.0,154.87,154.84,6.4581]
[1729327155100,20.0,154.87,154.83,22.6051]
[1729327160679,20.0,154.87,154.85,6.4578]
[1729327161189,26.4558,154.9,154.86,6.4574]
[1729327161366,20.0,154.88,154.86,6.4574]
[1729327161682,21.7991,154.91,154.86,6.457]
[1729327161860,6.4553,154.91,154.86,6.457]
[1729327162267,7.95018053,154.94,154.81,32.2976]
[1729327162879,23.776884,154.92,154.81,32.2976]
[1729327163387,20.0,154.89,154.86,6.457]
[1729327164475,43.776884,154.9,154.86,6.457]
[1729327174489,50.232884,154.9,154.85,22.6018]
[1729327184493,50.232884,154.9,154.86,6.4573]
[1729327185102,20.0,154.9,154.87,6.4569]
[1729327185283,23.776884,154.91,154.87,6.4569]
[1729327189205,20.0,154.91,154.85,6.5883]
[1729327189517,23.776884,154.93,154.89,6.4558]
[1729327195298,6.4545,154.93,154.88,22.597]
[1729327195496,6.4549,154.92,154.88,16.1405]
[1729327195707,6.4549,154.92,154.88,22.597]
[1729327195899,26.4546,154.93,154.88,22.597]
[1729327200626,20.0,154.93,154.85,6.5883]
[1729327200790,30.232984,154.9,154.84,32.3047]
[1729327200992,30.232984,154.9,154.85,6.4575]
[1729327203513,26.4563,154.89,154.84,22.6029]
[1729327225117,26.4562,154.89,154.84,22.6029]
[1729327230513,20.0,154.89,154.85,22.6016]
[1729327246643,30.232984,154.9,154.85,22.6016]
[1729327247150,6.4554,154.91,154.82,32.2955]
[1729327247446,6.4545,154.93,154.88,6.4562]
[1729327247652,6.4545,154.93,154.85,6.5241]
[1729327247825,6.4545,154.93,154.87,16.1417]
[1729327248441,6.4545,154.93,154.88,6.4562]
[1729327248828,20.0,154.92,154.88,6.4562]
[1729327254053,20.0,154.92,154.85,6.5241]
[1729327254251,20.0,154.92,154.88,22.5975]
[1729327265659,20.0,154.92,154.89,6.456]
[1729327266162,20.0,154.92,154.88,22.5976]
[1729327268964,0.107864,154.94,154.88,22.5976]
[1729327269163,20.0,154.92,154.88,22.5976]
[1729327278071,6.4555,154.91,154.86,6.4574]
[1729327278571,6.4557,154.91,154.86,6.4574]
[1729327281080,6.455,154.92,154.88,6.4564]
[1729327281377,20.0,154.93,154.88,6.4564]
[1729327282082,26.4546,154.93,154.88,6.4564]
[1729327282554,20.0,154.93,154.89,6.4559]
[1729327283959,20.0,154.93,154.86,6.6034]
[1729327284253,6.75134227,154.94,154.91,6.455]
[1729327285247,6.75134227,154.94,154.88,15.4706]
[1729327285452,0.107864,154.94,154.93,6.4545]
[1729327289355,0.107864,154.94,154.88,15.4706]
[1729327289554,0.107864,154.94,154.89,22.596]
[1729327289555,6.561964,154.94,154.89,22.596]
[1729327292879,20.107864,154.94,154.88,6.4565]
[1729327293082,6.455,154.92,154.87,6.457]
[1729327293868,6.455,154.92,154.88,6.4565]
[1729327302995,20.107864,154.94,154.87,16.1425]
[1729327303204,6.4565,154.89,154.84,38.0742]
[1729327303391,6.4566,154.89,154.84,22.6036]
[1729327306675,23.776884,154.91,154.87,6.4566]
[1729327307270,30.232184,154.91,154.87,22.5984]
[1729327307877,30.232184,154.91,154.87,16.1418]
[1729327309874,26.455,154.92,154.88,6.4565]
[1729327310976,23.776884,154.91,154.83,10.58124593]
[1729327311177,6.4557,154.9,154.85,6.4576]
[1729327311593,6.4557,154.9,154.83,10.58124593]
[1729327311801,6.4557,154.9,154.86,6.4573]
[1729327321904,20.0,154.93,154.84,16.2585]
[1729327322078,6.562164,154.94,154.89,6.4558]
[1729327322900,0.107864,154.94,154.87,6.4587]
[1729327323209,6.4545,154.93,154.88,6.4565]
[1729327330316,0.107864,154.94,154.93,6.4545]
[1729327330610,0.107864,154.94,154.9,22.5937]
[1729327331991,20.107864,154.94,154.9,22.5937]
[1729327333237,0.107864,154.94,154.87,6.4587]
[1729327333519,6.4547,154.93,154.88,6.4566]
[1729327338699,6.4549,154.93,154.88,6.4566]
[1729327339034,6.4551,154.92,154.87,22.599]
[1729327342630,6.4555,154.91,154.87,16.1421]
[1729327344231,0.107864,154.94,154.86,6.4573]
[1729327344540,6.4557,154.9,154.86,6.4573]
[1729327345427,6.4564,154.89,154.84,38.8618]
[1729327345630,16.105764,154.94,154.84,38.8618]
[1729327345631,6.4566,154.88,154.84,38.8618]
[1729327346713,6.4566,154.88,154.84,22.6033]
[1729327347313,43.776884,154.92,154.85,6.4578]
[1729327347935,6.4561,154.9,154.85,6.4578]
[1729327348131,20.0,154.89,154.85,6.4578]
[1729327349237,23.776884,154.92,154.83,17.16754593]
[1729327349421,26.4554,154.91,154.86,6.4574]
[1729327350216,26.4554,154.91,154.87,6.4569]
[1729327355754,0.107864,154.94,154.85,15.0511]
[1729327355935,6.562064,154.94,154.89,6.4561]
[1729327356439,0.107864,154.94,154.86,20.0]
[1729327356627,0.107864,154.94,154.9,6.4554]
[1729327357638,0.107864,154.94,154.87,22.5995]
[1729327357831,0.107864,154.94,154.9,6.4555]
[1729327360932,6.562064,154.94,154.89,22.5961]
[1729327364049,6.562064,154.94,154.89,21.74071209]
[1729327364540,20.0,154.93,154.86,32.2872]
[1729327364737,20.0,154.93,154.87,6.457]
[1729327365058,6.4554,154.91,154.86,6.457]
[1729327367062,6.4562,154.89,154.85,16.1436]
[1729327367235,43.776884,154.92,154.85,16.1436]
[1729327367236,50.49289589,154.92,154.85,16.1436]
[1729327367437,20.0,154.92,154.89,6.4557]
[1729327367666,20.0,154.92,154.88,6.4565]
[1729327367959,6.4545,154.93,154.84,16.394]
[1729327368265,6.4545,154.93,154.87,16.1415]
[1729327369437,6.4545,154.93,154.88,6.4563]
[1729327379866,6.44437123,154.94,154.87,16.1415]
[1729327380053,6.4549,154.93,154.88,6.4565]
[1729327380773,6.4552,154.92,154.87,16.1415]
[1729327380966,6.4558,154.9,154.86,6.457]
[1729327381467,6.4558,154.9,154.85,6.4576]
[1729327381859,6.4558,154.9,154.86,6.4573]
[1729327383369,6.4554,154.91,154.86,6.4573]
[1729327397664,6.4554,154.91,154.86,22.6003]
[1729327412899,6.456,154.9,154.86,16.1433]
[1729327440422,43.776884,154.93,154.89,6.4559]
[1729327440718,43.776884,154.93,154.88,16.141]
[1729327440900,6.4549,154.92,154.88,16.141]
[1729327442005,43.776884,154.93,154.88,16.141]
[1729327442206,6.4553,154.91,154.88,16.141]
[1729327443001,43.776884,154.93,154.85,25.46315671]
[1729327443321,6.4559,154.9,154.85,31.92085671]
[1729327445207,6.4559,154.9,154.85,25.46315671]
[1729327445419,6.4559,154.9,154.86,6.4573]
[1729327450526,6.4559,154.9,154.85,25.46315671]